fUST/lending_fUST_20250218
["ID","MTS","AMOUNT","RATE_DAILY","PERIOD"]
[353495543,1739883051166,-500.0,0.00014712,2]
[353495544,1739883051176,-151.0,0.00014712,2]
[353495545,1739883051185,-500.0,0.00014712,2]
[353495546,1739883051194,-5388.83,0.00014712,2]
[353495547,1739883051204,-500.0,0.00014712,2]
[353495548,1739883051213,-720.31,0.00014712,2]
[353495549,1739883051222,-500.0,0.00014712,2]
[353495550,1739883051231,-15661.31,0.00014712,2]
[353495551,1739883051241,-500.0,0.00014713,2]
[353495552,1739883051250,-500.0,0.00014713,2]
[353495553,1739883051260,-500.0,0.00014713,2]
[353495554,1739883051270,-654.52,0.00014713,2]
[353495555,1739883051279,-654.87,0.00014713,2]
[353495556,1739883051289,-535.02,0.00014713,2]
[353495557,1739883051299,-562.5,0.00014713,2]
[353495558,1739883051388,-686.43,0.00014793,2]
[353495559,1739883051400,-500.0,0.00014793,2]
[353495560,1739883051414,-1069.8,0.00014793,2]
[353495561,1739883051425,-2292.51,0.00014793,2]
[353495562,1739883051434,-578.63,0.00014793,2]
[353495563,1739883051444,-502.52,0.00014793,2]
[353495564,1739883051454,-500.0,0.00014793,2]
[353495565,1739883051464,-500.0,0.00014794,2]
[353495566,1739883051473,-500.0,0.00014794,2]
[353495567,1739883051483,-500.0,0.00014794,2]
[353495568,1739883051497,-500.0,0.00014794,2]
[353495569,1739883051507,-756.48,0.00014794,2]
[353495570,1739883051516,-1695.25,0.00014794,2]
[353495571,1739883051526,-503.08610312,0.00014794,2]
[353495572,1739883051537,-1272.16,0.00014794,2]
[353495573,1739883051546,-500.0,0.00014794,2]
[353495574,1739883051556,-500.0,0.00014794,2]
[353495575,1739883051567,-500.0,0.00014794,2]
[353495576,1739883051577,-189.94,0.00014794,2]
[353495577,1739883051587,-5388.83,0.00014794,2]
[353495578,1739883051596,-500.0,0.00014794,2]
[353495579,1739883051605,-720.31,0.00014794,2]
[353495580,1739883051614,-500.0,0.00014794,2]
[353495581,1739883051623,-15661.31,0.00014794,2]
[353495582,1739883051633,-500.0,0.00014795,2]
[353495583,1739883051643,-500.0,0.00014795,2]
[353495584,1739883051652,-500.0,0.00014795,2]
[353495585,1739883051662,-654.52,0.00014795,2]
[353495586,1739883051671,-654.87,0.00014795,2]
[353495587,1739883051681,-535.02,0.00014795,2]
[353495588,1739883051691,-562.5,0.00014795,2]
[353495589,1739883051700,-686.43,0.00014875,2]
[353495590,1739883051710,-500.0,0.00014875,2]
[353495591,1739883051719,-1069.8,0.00014875,2]
[353495592,1739883051728,-2292.51,0.00014875,2]
[353495593,1739883051738,-578.63,0.00014875,2]
[353495594,1739883051747,-502.52,0.00014875,2]
[353495595,1739883051756,-500.0,0.00014875,2]
[353495596,1739883051766,-500.0,0.00014876,2]
[353495597,1739883051775,-500.0,0.00014876,2]
[353495598,1739883051784,-500.0,0.00014876,2]
[353495599,1739883051794,-381.55699798,0.00014876,2]
[353495600,1739883051803,-756.48,0.00014876,2]
[353495601,1739883051814,-1695.25,0.00014876,2]
[353495602,1739883051823,-1272.16,0.00014876,2]
[353495603,1739883051832,-500.0,0.00014876,2]
[353495604,1739883051842,-500.0,0.00014876,2]
[353495605,1739883051851,-500.0,0.00014876,2]
[353495606,1739883051861,-179.888048,0.00014876,2]
[353495607,1739883051870,-5388.83,0.00014876,2]
[353495608,1739883051880,-500.0,0.00014876,2]
[353495609,1739883051889,-720.31,0.00014876,2]
[353495610,1739883051898,-500.0,0.00014876,2]
[353495611,1739883051907,-15661.31,0.00014876,2]
[353495612,1739883051916,-151.0,0.00014877,2]
[353495613,1739883051926,-151.0,0.00014877,2]
[353495614,1739883051935,-698.78,0.00014877,2]
[353495615,1739883051945,-698.78,0.00014877,2]
[353495616,1739883051954,-698.78,0.00014877,2]
[353495617,1739883051964,-698.78,0.00014877,2]
[353495618,1739883051973,-698.89137142,0.00014877,2]
[353495619,1739883051982,-564.97594891,0.00014878,2]
[353495620,1739883051992,-500.0,0.00014878,2]
[353495621,1739883052001,-378.45,0.00014878,2]
[353495622,1739883052011,-654.52,0.00014878,2]
[353495623,1739883052020,-654.87,0.00014878,2]
[353495624,1739883052029,-535.02,0.00014878,2]
[353495625,1739883052039,-562.5,0.00014878,2]
[353495626,1739883052048,-41815.1263608,0.000149,2]
[353495627,1739883052059,-686.43,0.00014958,2]
[353495628,1739883052068,-500.0,0.00014958,2]
[353495629,1739883052078,-1069.8,0.00014958,2]
[353495630,1739883052087,-2292.51,0.00014958,2]
[353495631,1739883052096,-578.63,0.00014958,2]
[353495632,1739883052106,-502.52,0.00014958,2]
[353495633,1739883052115,-500.0,0.00014958,2]
[353495634,1739883052124,-500.0,0.00014959,2]
[353495635,1739883052134,-500.0,0.00014959,2]
[353495636,1739883052143,-384.13,0.00014959,2]
[353495637,1739883052152,-756.48,0.00014959,2]
[353495638,1739883052161,-1695.25,0.00014959,2]
[353495639,1739883052171,-1272.16,0.00014959,2]
[353495640,1739883052180,-500.0,0.00014959,2]
[353495641,1739883052190,-500.0,0.00014959,2]
[353495642,1739883052199,-500.0,0.00014959,2]
[353495643,1739883052208,-5388.83,0.00014959,2]
[353495644,1739883052218,-500.0,0.00014959,2]
[353495645,1739883052228,-720.31,0.00014959,2]
[353495646,1739883052237,-500.0,0.00014959,2]
[353495647,1739883052247,-15661.31,0.00014959,2]
[353495648,1739883052256,-500.0,0.0001496,2]
[353495649,1739883052265,-654.52,0.0001496,2]
[353495650,1739883052275,-654.87,0.0001496,2]
[353495651,1739883052284,-535.02,0.0001496,2]
[353495652,1739883052294,-562.5,0.0001496,2]
[353495653,1739883052303,-448.61,0.00015,3]
[353495654,1739883052313,-500.0,0.00015,3]
[353495655,1739883052323,-500.0,0.00015,3]
[353495656,1739883052332,-151.0,0.00015,2]
[353495657,1739883052342,-151.0,0.00015,2]
[353495658,1739883052351,-686.43,0.0001504,2]
[353495659,1739883052361,-500.0,0.0001504,2]
[353495660,1739883052370,-1069.8,0.0001504,2]
[353495661,1739883052379,-2292.51,0.0001504,2]
[353495662,1739883052389,-578.63,0.0001504,2]
[353495663,1739883052399,-502.52,0.0001504,2]
[353495664,1739883052408,-500.0,0.0001504,2]
[353495665,1739883052418,-495.37315098,0.00015041,2]
[353495666,1739883052427,-500.0,0.00015041,2]
[353495667,1739883052437,-756.48,0.00015041,2]
[353495668,1739883052446,-1695.25,0.00015041,2]
[353495669,1739883052456,-1272.16,0.00015041,2]
[353495670,1739883052467,-500.0,0.00015041,2]
[353495671,1739883052476,-500.0,0.00015041,2]
[353495672,1739883052487,-599.21,0.00015041,2]
[353495673,1739883052499,-5388.83,0.00015041,2]
[353495674,1739883052508,-500.0,0.00015041,2]
[353495675,1739883052517,-720.31,0.00015041,2]
[353495676,1739883052527,-500.0,0.00015041,2]
[353495677,1739883052536,-15661.31,0.00015041,2]
[353495678,1739883052545,-500.0,0.00015042,2]
[353495679,1739883052555,-654.52,0.00015042,2]
[353495680,1739883052566,-654.87,0.00015042,2]
[353495681,1739883052576,-535.02,0.00015042,2]
[353495682,1739883052586,-562.5,0.00015042,2]
[353495683,1739883052595,-686.43,0.00015122,2]
[353495684,1739883052604,-500.0,0.00015122,2]
[353495685,1739883052614,-1069.8,0.00015122,2]
[353495686,1739883052623,-2292.51,0.00015122,2]
[353495687,1739883052632,-578.63,0.00015122,2]
[353495688,1739883052641,-502.52,0.00015122,2]
[353495689,1739883052650,-500.0,0.00015122,2]
[353495690,1739883052659,-756.48,0.00015123,2]
[353495691,1739883052669,-1695.25,0.00015123,2]
[353495692,1739883052678,-1272.16,0.00015123,2]
[353495693,1739883052687,-500.0,0.00015123,2]
[353495694,1739883052697,-500.0,0.00015123,2]
[353495695,1739883052706,-5388.83,0.00015123,2]
[353495696,1739883052715,-500.0,0.00015123,2]
[353495697,1739883052725,-720.31,0.00015123,2]
[353495698,1739883052735,-255.07699511,0.00015123,2]
[353495699,1739883052744,-15661.31,0.00015123,2]
[353495700,1739883052753,-500.0,0.00015124,2]
[353495701,1739883052762,-654.52,0.00015124,2]
[353495702,1739883052772,-654.87,0.00015124,2]
[353495703,1739883052781,-535.02,0.00015124,2]
[353495704,1739883052791,-562.5,0.00015124,2]
[353495705,1739883052800,-686.43,0.00015204,2]
[353495706,1739883052810,-500.0,0.00015204,2]
[353495707,1739883052819,-1069.8,0.00015204,2]
[353495708,1739883052828,-2292.51,0.00015204,2]
[353495709,1739883052838,-578.63,0.00015204,2]
[353495710,1739883052848,-502.52,0.00015204,2]
[353495711,1739883052857,-500.0,0.00015204,2]
[353495712,1739883052867,-756.48,0.00015205,2]
[353495713,1739883052876,-1695.25,0.00015205,2]
[353495714,1739883052885,-1272.16,0.00015205,2]
[353495715,1739883052895,-500.0,0.00015205,2]
[353495716,1739883052905,-500.0,0.00015205,2]
[353495717,1739883052915,-5388.83,0.00015205,2]
[353495718,1739883052924,-500.0,0.00015205,2]
[353495719,1739883052934,-720.31,0.00015205,2]
[353495720,1739883052943,-15661.31,0.00015205,2]
[353495721,1739883052952,-500.0,0.00015206,2]
[353495722,1739883052961,-654.52,0.00015206,2]
[353495723,1739883052971,-654.87,0.00015206,2]
[353495724,1739883052980,-535.02,0.00015206,2]
[353495725,1739883052989,-562.5,0.00015206,2]
[353495726,1739883052999,-420.0,0.00015217,2]
[353495727,1739883053008,-686.43,0.00015286,2]
[353495728,1739883053017,-500.0,0.00015286,2]
[353495729,1739883053026,-1069.8,0.00015286,2]
[353495730,1739883053035,-2292.51,0.00015286,2]
[353495731,1739883053044,-578.63,0.00015286,2]
[353495732,1739883053059,-502.52,0.00015286,2]
[353495733,1739883053071,-500.0,0.00015286,2]
[353495734,1739883053081,-756.48,0.00015287,2]
[353495735,1739883053092,-1695.25,0.00015287,2]
[353495736,1739883053102,-1272.16,0.00015287,2]
[353495737,1739883053111,-500.0,0.00015287,2]
[353495738,1739883053121,-310.84,0.00015287,2]
[353495739,1739883053131,-5388.83,0.00015287,2]
[353495740,1739883053140,-231.77,0.00015287,2]
[353495741,1739883053151,-720.31,0.00015287,2]
[353495742,1739883053160,-15661.31,0.00015287,2]
[353495743,1739883053169,-500.0,0.00015289,2]
[353495744,1739883053178,-654.52,0.00015289,2]
[353495745,1739883053188,-654.87,0.00015289,2]
[353495746,1739883053198,-535.02,0.00015289,2]
[353495747,1739883053207,-562.5,0.00015289,2]
[353495748,1739883053217,-686.43,0.00015369,2]
[353495749,1739883053227,-500.0,0.00015369,2]
[353495750,1739883053236,-1069.8,0.00015369,2]
[353495751,1739883053246,-2292.51,0.00015369,2]
[353495752,1739883053255,-578.63,0.00015369,2]
[353495753,1739883053265,-502.52,0.00015369,2]
[353495754,1739883053275,-500.0,0.00015369,2]
[353495755,1739883053284,-151.0,0.0001537,2]
[353495756,1739883053294,-151.0,0.0001537,2]
[353495757,1739883053303,-756.48,0.0001537,2]
[353495758,1739883053313,-1695.25,0.0001537,2]
[353495759,1739883053323,-1272.16,0.0001537,2]
[353495760,1739883053333,-500.0,0.0001537,2]
[353495761,1739883053343,-5388.83,0.0001537,2]
[353495762,1739883053352,-720.31,0.0001537,2]
[353495763,1739883053363,-15661.31,0.0001537,2]
[353495764,1739883053372,-385.20673303,0.00015371,2]
[353495765,1739883053382,-654.52,0.00015371,2]
[353495766,1739883053392,-654.87,0.00015371,2]
[353495767,1739883053401,-535.02,0.00015371,2]
[353495768,1739883053411,-562.5,0.00015371,2]
[353495769,1739883053420,-268.25180074,0.00015422,2]
[353495770,1739883053430,-686.43,0.00015451,2]
[353495771,1739883053439,-500.0,0.00015451,2]
[353495772,1739883053449,-1069.8,0.00015451,2]
[353495773,1739883053458,-2292.51,0.00015451,2]
[353495774,1739883053468,-578.63,0.00015451,2]
[353495775,1739883053478,-502.52,0.00015451,2]
[353495776,1739883053490,-274.01,0.00015451,2]
[353495777,1739883053501,-756.48,0.00015452,2]
[353495778,1739883053511,-1695.25,0.00015452,2]
[353495779,1739883053521,-1272.16,0.00015452,2]
[353495780,1739883053531,-500.0,0.00015452,2]
[353495781,1739883053540,-5388.83,0.00015452,2]
[353495782,1739883053550,-720.31,0.00015452,2]
[353495783,1739883053559,-15661.31,0.00015452,2]
[353495784,1739883053643,-654.52,0.00015453,2]
[353495785,1739883053654,-654.87,0.00015453,2]
[353495786,1739883053664,-535.02,0.00015453,2]
[353495787,1739883053673,-562.5,0.00015453,2]
[353495788,1739883053682,-686.43,0.00015533,2]
[353495789,1739883053691,-500.0,0.00015533,2]
[353495790,1739883053700,-1069.8,0.00015533,2]
[353495791,1739883053710,-2292.51,0.00015533,2]
[353495792,1739883053720,-578.63,0.00015533,2]
[353495793,1739883053730,-502.52,0.00015533,2]
[353495794,1739883053740,-756.48,0.00015534,2]
[353495795,1739883053751,-1695.25,0.00015534,2]
[353495796,1739883053760,-1272.16,0.00015534,2]
[353495797,1739883053770,-500.0,0.00015534,2]
[353495798,1739883053780,-5388.83,0.00015534,2]
[353495799,1739883053790,-720.31,0.00015534,2]
[353495800,1739883053799,-15661.31,0.00015534,2]
[353495801,1739883053809,-600.0,0.00015534,2]
[353495802,1739883053819,-654.52,0.00015535,2]
[353495803,1739883053829,-654.87,0.00015535,2]
[353495804,1739883053838,-535.02,0.00015535,2]
[353495805,1739883053848,-562.5,0.00015535,2]
[353495806,1739883053858,-686.43,0.00015615,2]
[353495807,1739883053867,-500.0,0.00015615,2]
[353495808,1739883053877,-1069.8,0.00015615,2]
[353495809,1739883053887,-2292.51,0.00015615,2]
[353495810,1739883053897,-578.63,0.00015615,2]
[353495811,1739883053906,-502.52,0.00015615,2]
[353495812,1739883053915,-756.48,0.00015616,2]
[353495813,1739883053926,-1695.25,0.00015616,2]
[353495814,1739883053936,-1272.16,0.00015616,2]
[353495815,1739883053945,-500.0,0.00015616,2]
[353495816,1739883053955,-5388.83,0.00015616,2]
[353495817,1739883053965,-720.31,0.00015616,2]
[353495818,1739883053975,-15661.31,0.00015616,2]
[353495819,1739883053984,-654.52,0.00015617,2]
[353495820,1739883053994,-654.87,0.00015617,2]
[353495821,1739883054003,-535.02,0.00015617,2]
[353495822,1739883054013,-562.5,0.00015617,2]
[353495823,1739883054023,-686.43,0.00015697,2]
[353495824,1739883054032,-562.3,0.00015697,2]
[353495825,1739883054041,-1069.8,0.00015697,2]
[353495826,1739883054051,-2292.51,0.00015697,2]
[353495827,1739883054061,-578.63,0.00015697,2]
[353495828,1739883054074,-502.52,0.00015697,2]
[353495829,1739883054086,-756.48,0.00015698,2]
[353495830,1739883054095,-1695.25,0.00015698,2]
[353495831,1739883054105,-1272.16,0.00015698,2]
[353495832,1739883054115,-192.82,0.00015698,2]
[353495833,1739883054125,-5388.83,0.00015698,2]
[353495834,1739883054135,-720.31,0.00015698,2]
[353495835,1739883054145,-15661.31,0.00015698,2]
[353495836,1739883054155,-654.52,0.000157,2]
[353495837,1739883054165,-654.87,0.000157,2]
[353495838,1739883054175,-535.02,0.000157,2]
[353495839,1739883054185,-562.5,0.000157,2]
[353495840,1739883054195,-400.0,0.00015775,2]
[353495841,1739883054205,-686.57027028,0.00015779,2]
[353495842,1739883054214,-1069.85,0.00015779,2]
[353495843,1739883054224,-2292.70957478,0.00015779,2]
[353495844,1739883054235,-578.72,0.00015779,2]
[353495845,1739883054245,-502.65438316,0.00015779,2]
[353495846,1739883054255,-756.52,0.00015781,2]
[353495847,1739883054264,-1695.48,0.00015781,2]
[353495848,1739883054275,-1272.29,0.00015781,2]
[353495849,1739883054284,-5388.95,0.00015781,2]
[353495850,1739883054294,-720.32,0.00015781,2]
[353495851,1739883054304,-15661.46,0.00015781,2]
[353495852,1739883054314,-654.61269851,0.00015782,2]
[353495853,1739883054324,-655.09,0.00015782,2]
[353495854,1739883054334,-535.18,0.00015782,2]
[353495855,1739883054345,-562.5,0.00015782,2]
[353495856,1739883054355,-499.0,0.00016164,2]
[353495857,1739883054366,-420.0,0.00016673,2]
[353495858,1739883054376,-600.0,0.00016904,2]
[353495859,1739883054386,-355.1269712,0.00017041,2]
[353495860,1739883054396,-355.1269712,0.00017041,2]
[353495861,1739883054406,-354.7159283,0.00017041,2]
[353495862,1739883054416,-306.345728,0.00017178,2]
[353495863,1739883054426,-156.0880938,0.00017178,2]
[353495864,1739883054435,-215.9231093,0.00017178,2]
[353495865,1739883054445,-374.22,0.000172,2]
[353495866,1739883054455,-499.0,0.00017534,4]
[353495867,1739883054465,-320.4397047,0.00017613,2]
[353495868,1739883054475,-151.0,0.00017717,2]
[353495869,1739883054485,-151.0,0.00017717,2]
[353495870,1739883054498,-150.491,0.00017717,2]
[353495871,1739883054507,-538.0,0.00017717,2]
[353495872,1739883054517,-1988.144,0.00017717,2]
[353495873,1739883054526,-2291.0,0.00017717,2]
[353495874,1739883054537,-150.0,0.00017717,2]
[353495875,1739883054547,-295.974,0.00017717,2]
[353495876,1739883054557,-396.0,0.00017717,2]
[353495877,1739883054568,-150.074,0.00017717,2]
[353495878,1739883054579,-150.0,0.00017717,2]
[353495879,1739883054589,-150.039,0.00017717,2]
[353495880,1739883054598,-1000.0,0.00017733,2]
[353495881,1739883054608,-1000.0,0.00017738,2]
[353495882,1739883054618,-1000.0,0.00017738,2]
[353495883,1739883054628,-1000.0,0.00017741,2]
[353495884,1739883054637,-1000.0,0.0001775,2]
[353495885,1739883054647,-1000.0,0.00017788,2]
[353495886,1739883054656,-1000.0,0.00017818,2]
[353495887,1739883054666,-22618.90496927,0.0001782,2]
[353495888,1739883054675,-1000.0,0.00017834,2]
[353495889,1739883054685,-1000.0,0.00017854,2]
[353495890,1739883054694,-1000.0,0.00017862,2]
[353495891,1739883054703,-1000.0,0.00017883,2]
[353495892,1739883054713,-3000.0,0.000179,2]
[353495893,1739883054724,-153.44,0.000179,31]
[353495894,1739883054734,-153.44,0.000179,31]
[353495895,1739883054744,-153.44,0.000179,31]
[353495896,1739883054754,-153.44,0.000179,31]
[353495897,1739883054764,-153.44,0.000179,31]
[353495898,1739883054773,-153.44,0.000179,31]
[353495899,1739883054783,-153.44,0.000179,31]
[353495900,1739883054792,-151.0,0.000179,2]
[353495901,1739883054802,-151.0,0.000179,2]
[353495902,1739883054811,-163.180986,0.000179,3]
[353495903,1739883054821,-1000.0,0.00017925,2]
[353495904,1739883054831,-151.0,0.00017972,2]
[353495905,1739883054841,-500.0,0.00017973,2]
[353495906,1739883054851,-1002.90059045,0.00017989,2]
[353495907,1739883054861,-163.180986,0.00017999,7]
[353495908,1739883054871,-3122327.67193765,0.00018,15]
[353495934,1739883453752,15406.78056809,0.00018245,60]
[353495998,1739883898283,400.0,9.041e-05,2]
[353496000,1739883949114,-158.8405508,0.00012667,2]
[353496001,1739883949135,-635.56803996,0.00012695,2]
[353496017,1739884034092,-312.44648334,0.00012568,2]
[353496018,1739884034114,-961.84665772,0.00012695,2]
[353496019,1739884043093,-402.58530232,0.00012695,2]
[353496020,1739884043115,-29.46727978,0.00012924,2]
[353496021,1739884050114,-129.37327102,0.00012924,2]
[353496022,1739884050137,-302.0223391,0.00012963,2]
[353496023,1739884050159,-232.77960738,0.00013068,2]
[353496076,1739884232580,-367.22039262,0.00013068,2]
[353496077,1739884232590,-7947.74305928,0.00013642,2]
[353496078,1739884232602,-300.0,0.00013884,2]
[353496079,1739884232612,-926.09,0.00013885,2]
[353496080,1739884232621,-500.0,0.00013885,2]
[353496081,1739884232631,-500.0,0.00013885,2]
[353496082,1739884232640,-591.81,0.00013885,2]
[353496083,1739884232650,-500.0,0.00013885,2]
[353496085,1739884232659,-500.0,0.00013885,2]
[353496086,1739884232668,-500.0,0.00013885,2]
[353496087,1739884232678,-1340.05,0.00013885,2]
[353496088,1739884232687,-8.04669032,0.00013885,2]
[353496089,1739884232699,-491.95330968,0.00013885,2]
[353496090,1739884232708,-2408.08,0.00013885,2]
[353496091,1739884232717,-500.0,0.00013885,2]
[353496092,1739884232726,-1583.53,0.00013885,2]
[353496093,1739884232736,-968.7,0.00013885,2]
[353496094,1739884232745,-500.0,0.00013885,2]
[353496095,1739884232755,-500.0,0.00013885,2]
[353496096,1739884232764,-507.22120274,0.00013885,2]
[353496097,1739884232774,-500.0,0.00013885,2]
[353496098,1739884232783,-456.31319245,0.00013885,2]
[353496099,1739884232866,-433.29780654,0.00013885,2]
[353496100,1739884232900,-500.0,0.00013885,2]
[353496101,1739884232910,-500.0,0.00013886,2]
[353496102,1739884232920,-500.0,0.00013886,2]
[353496103,1739884232930,-207.78,0.00013886,2]
[353496104,1739884232939,-500.0,0.00013886,2]
[353496105,1739884232948,-500.0,0.00013886,2]
[353496106,1739884232959,-994.25,0.00013886,2]
[353496107,1739884232968,-500.0,0.00013886,2]
[353496108,1739884232977,-500.0,0.00013886,2]
[353496109,1739884232987,-887.38,0.00013886,2]
[353496110,1739884232996,-500.0,0.00013886,2]
[353496111,1739884233005,-500.0,0.00013886,2]
[353496112,1739884233015,-1762.53,0.00013886,2]
[353496113,1739884233024,-500.0,0.00013886,2]
[353496114,1739884233034,-500.0,0.00013886,2]
[353496115,1739884233043,-500.0,0.00013886,2]
[353496116,1739884233053,-841.18,0.00013886,2]
[353496117,1739884233063,-500.0,0.00013886,2]
[353496118,1739884233072,-500.0,0.00013886,2]
[353496119,1739884233082,-500.0,0.00013886,2]
[353496120,1739884233091,-500.0,0.00013886,2]
[353496121,1739884233103,-500.0,0.00013886,2]
[353496122,1739884233112,-500.0,0.00013886,2]
[353496123,1739884233122,-500.0,0.00013886,2]
[353496124,1739884233131,-500.0,0.00013886,2]
[353496125,1739884233141,-500.0,0.00013886,2]
[353496126,1739884233150,-500.0,0.00013886,2]
[353496127,1739884233159,-500.0,0.00013886,2]
[353496128,1739884233169,-500.0,0.00013886,2]
[353496129,1739884233179,-4617.12,0.00013886,2]
[353496130,1739884233189,-500.0,0.00013886,2]
[353496131,1739884233199,-565.39,0.00013886,2]
[353496132,1739884233208,-500.0,0.00013886,2]
[353496133,1739884233218,-500.0,0.00013886,2]
[353496134,1739884233230,-500.0,0.00013886,2]
[353496135,1739884233240,-9150.35,0.00013886,2]
[353496136,1739884233250,-14321.15,0.00013886,2]
[353496137,1739884233259,-1318.75,0.00013886,2]
[353496138,1739884233269,-500.0,0.00013887,2]
[353496139,1739884233279,-500.0,0.00013887,2]
[353496140,1739884233288,-500.0,0.00013887,2]
[353496141,1739884233298,-500.0,0.00013887,2]
[353496142,1739884233307,-500.0,0.00013887,2]
[353496143,1739884233317,-500.0,0.00013887,2]
[353496144,1739884233328,-500.0,0.00013887,2]
[353496145,1739884233337,-500.0,0.00013887,2]
[353496146,1739884233347,-500.0,0.00013887,2]
[353496147,1739884233357,-500.0,0.00013887,2]
[353496148,1739884233367,-500.0,0.00013887,2]
[353496149,1739884233376,-500.0,0.00013887,2]
[353496150,1739884233387,-500.0,0.00013887,2]
[353496151,1739884233397,-500.0,0.00013887,2]
[353496152,1739884233407,-500.0,0.00013887,2]
[353496153,1739884233417,-500.0,0.00013887,2]
[353496154,1739884233426,-500.0,0.00013887,2]
[353496155,1739884233436,-500.0,0.00013887,2]
[353496156,1739884233446,-500.0,0.00013887,2]
[353496157,1739884233455,-500.0,0.00013887,2]
[353496158,1739884233465,-500.0,0.00013887,2]
[353496159,1739884233474,-500.0,0.00013887,2]
[353496160,1739884233484,-500.0,0.00013887,2]
[353496161,1739884233494,-500.0,0.00013887,2]
[353496162,1739884233503,-500.0,0.00013887,2]
[353496163,1739884233513,-500.0,0.00013887,2]
[353496164,1739884233523,-500.0,0.00013887,2]
[353496165,1739884233532,-500.0,0.00013887,2]
[353496166,1739884233542,-488.52033644,0.00013887,2]
[353496167,1739884233552,-500.0,0.00013887,2]
[353496168,1739884233561,-500.0,0.00013887,2]
[353496169,1739884233571,-500.0,0.00013887,2]
[353496170,1739884233581,-500.0,0.00013887,2]
[353496171,1739884233591,-500.0,0.00013887,2]
[353496172,1739884233602,-500.0,0.00013887,2]
[353496173,1739884233611,-500.0,0.00013887,2]
[353496174,1739884233621,-500.0,0.00013887,2]
[353496175,1739884233630,-276.9602839,0.00013887,2]
[353496176,1739884233640,-500.0,0.00013887,2]
[353496177,1739884233649,-500.0,0.00013887,2]
[353496178,1739884233659,-151.70072566,0.00013887,2]
[353496179,1739884233669,-500.0,0.00013887,2]
[353496180,1739884233679,-500.0,0.00013887,2]
[353496181,1739884233688,-500.0,0.00013887,2]
[353496182,1739884233698,-500.0,0.00013887,2]
[353496183,1739884233708,-500.0,0.00013887,2]
[353496184,1739884233718,-500.0,0.00013887,2]
[353496185,1739884233728,-500.0,0.00013887,2]
[353496186,1739884233738,-500.0,0.00013887,2]
[353496187,1739884233748,-500.0,0.00013887,2]
[353496188,1739884233759,-500.0,0.00013887,2]
[353496189,1739884233769,-500.0,0.00013887,2]
[353496190,1739884233779,-500.0,0.00013887,2]
[353496191,1739884233789,-500.0,0.00013887,2]
[353496192,1739884233799,-500.0,0.00013887,2]
[353496193,1739884233810,-500.0,0.00013887,2]
[353496194,1739884233820,-500.0,0.00013887,2]
[353496195,1739884233830,-500.0,0.00013887,2]
[353496196,1739884233840,-190.11,0.00013887,2]
[353496197,1739884233852,-500.0,0.00013887,2]
[353496198,1739884233865,-500.0,0.00013887,2]
[353496199,1739884233881,-385.35,0.00013887,2]